[Event "Titled Tuesday Blitz January 31 Early 2023"]
[White "kiwibobo"]
[Black "Matveeva, Olga"]
[BlackFideId "24107018"]
[WhiteElo "2040"]
[BlackElo "2128"]
[Result "0-1"]
[Round "09"]
[TimeControl "180+2"]
[Date "2023.01.31"]
[WhiteClock "0:00:08"]
[BlackClock "0:00:08"]

1. e4 {[%clk 0:03:00]}  e6 {[%clk 0:02:59]} 2. d4 {[%clk 0:03:00]}  d5 {[%clk 0:03:00]} 3. Nd2 {[%clk 0:03:00]}  c5 {[%clk 0:02:59]} 4. Ngf3 {[%clk 0:03:00]}  cxd4 {[%clk 0:02:59]} 5. Nxd4 {[%clk 0:03:00]}  Nc6 {[%clk 0:02:57]} 6. Bb5 {[%clk 0:02:59]}  Bd7 {[%clk 0:02:56]} 7. Nxc6 {[%clk 0:02:59]}  bxc6 {[%clk 0:02:57]} 8. Bd3 {[%clk 0:02:59]}  Bd6 {[%clk 0:02:55]} 9. Qe2 {[%clk 0:02:58]}  e5 {[%clk 0:02:51]} 10. c4 {[%clk 0:02:49]}  Nf6 {[%clk 0:02:37]} 11. O-O {[%clk 0:02:40]}  O-O {[%clk 0:02:36]} 12. cxd5 {[%clk 0:02:38]}  cxd5 {[%clk 0:02:35]} 13. exd5 {[%clk 0:02:38]}  Nxd5 {[%clk 0:02:05]} 14. Be4 {[%clk 0:01:51]}  Be6 {[%clk 0:01:28]} 15. Nc4 {[%clk 0:01:26]}  Rc8 {[%clk 0:01:08]} 16. Rd1 {[%clk 0:01:13]}  Rxc4 {[%clk 0:00:26]} 17. Qxc4 {[%clk 0:01:03]}  Ne3 {[%clk 0:00:20]} 18. Qd3 {[%clk 0:00:26]}  Nxd1 {[%clk 0:00:19]} 19. Qxd1 {[%clk 0:00:25]}  Bc5 {[%clk 0:00:19]} 20. Qxd8 {[%clk 0:00:17]}  Rxd8 {[%clk 0:00:19]} 21. Be3 {[%clk 0:00:17]}  Bxe3 {[%clk 0:00:19]} 22. fxe3 {[%clk 0:00:18]}  Rd2 {[%clk 0:00:18]} 23. Rc1 {[%clk 0:00:15]}  g6 {[%clk 0:00:18]} 24. Rc2 {[%clk 0:00:13]}  Rd1+ {[%clk 0:00:17]} 25. Kf2 {[%clk 0:00:13]}  Bxa2 {[%clk 0:00:15]} 26. Rc7 {[%clk 0:00:12]}  a5 {[%clk 0:00:14]} 27. Ra7 {[%clk 0:00:11]}  Rd2+ {[%clk 0:00:12]} 28. Kg3 {[%clk 0:00:11]}  Rxb2 {[%clk 0:00:12]} 29. Rxa5 {[%clk 0:00:11]}  f6 {[%clk 0:00:08]} 30. Ra6 {[%clk 0:00:09]}  Kg7 {[%clk 0:00:07]} 31. Ra7+ {[%clk 0:00:09]}  Kh6 {[%clk 0:00:08]} 32. Rf7 {[%clk 0:00:08]}  f5 {[%clk 0:00:07]} 33. Bf3 {[%clk 0:00:08]}  e4 {[%clk 0:00:07]} 34. Bd1 {[%clk 0:00:07]}  Bb1 {[%clk 0:00:06]} 35. Rc7 {[%clk 0:00:06]}  Bd3 {[%clk 0:00:06]} 36. Rd7 {[%clk 0:00:05]}  Bf1 {[%clk 0:00:06]} 37. Kf4 {[%clk 0:00:05]}  Rxg2 {[%clk 0:00:06]} 38. h4 {[%clk 0:00:05]}  Rf2+ {[%clk 0:00:06]} 39. Kg3 {[%clk 0:00:05]}  Rg2+ {[%clk 0:00:07]} 40. Kf4 {[%clk 0:00:05]}  Rh2 {[%clk 0:00:07]} 41. Kg3 {[%clk 0:00:06]}  Rh3+ {[%clk 0:00:07]} 42. Kf4 {[%clk 0:00:06]}  Rxh4+ {[%clk 0:00:07]} 43. Ke5 {[%clk 0:00:06]}  Rh3 {[%clk 0:00:07]} 44. Kf6 {[%clk 0:00:07]}  Rxe3 {[%clk 0:00:06]} 45. Ba4 {[%clk 0:00:07]}  f4 {[%clk 0:00:05]} 46. Bc6 {[%clk 0:00:06]}  f3 {[%clk 0:00:05]} 47. Bd5 {[%clk 0:00:07]}  Bh3 {[%clk 0:00:05]} 48. Re7 {[%clk 0:00:06]}  f2 {[%clk 0:00:05]} 49. Bg8 {[%clk 0:00:07]}  f1=Q+ {[%clk 0:00:05]} 50. Ke5 {[%clk 0:00:06]}  Kg5 {[%clk 0:00:05]} 51. Rf7 {[%clk 0:00:06]}  Qxf7 {[%clk 0:00:04]} 52. Bxf7 {[%clk 0:00:06]}  Rf3 {[%clk 0:00:05]} 53. Bd5 {[%clk 0:00:06]}  e3 {[%clk 0:00:05]} 54. Bxf3 {[%clk 0:00:06]}  Bg4 {[%clk 0:00:06]} 55. Bxg4 {[%clk 0:00:04]}  Kxg4 {[%clk 0:00:07]} 56. Ke4 {[%clk 0:00:05]}  e2 {[%clk 0:00:07]} 57. Ke3 {[%clk 0:00:06]}  e1=Q+ {[%clk 0:00:08]} 58. Kd3 {[%clk 0:00:07]}  Kf3 {[%clk 0:00:07]} 59. Kd4 {[%clk 0:00:07]}  Qe3+ {[%clk 0:00:07]} 60. Kd5 {[%clk 0:00:08]}  Qe4+ {[%clk 0:00:08]} 61. Kc5 {[%clk 0:00:08]}  Kf4 {[%clk 0:00:08]} 0-1


[Site "https://www.chess.com"]

[Event "Titled Tuesday Blitz January 31 Early 2023"]
[White "De Souza, Cristiano Gomes"]
[Black "Mosquera, Miguel"]
[WhiteFideId "2151758"]
[BlackFideId "4401131"]
[WhiteElo "2018"]
[BlackElo "2371"]
[Result "0-1"]
[Round "09"]
[TimeControl "180+2"]
[Date "2023.01.31"]
[WhiteClock "0:00:43"]
[BlackClock "0:00:10"]

1. d4 {[%clk 0:02:58]}  d5 {[%clk 0:02:55]} 2. c4 {[%clk 0:02:57]}  e6 {[%clk 0:02:51]} 3. Nf3 {[%clk 0:02:56]}  Nf6 {[%clk 0:02:52]} 4. Nc3 {[%clk 0:02:55]}  Bd6 {[%clk 0:02:43]} 5. Bg5 {[%clk 0:02:55]}  c6 {[%clk 0:02:34]} 6. e3 {[%clk 0:02:55]}  Nbd7 {[%clk 0:02:24]} 7. Rc1 {[%clk 0:02:53]}  O-O {[%clk 0:02:18]} 8. Bd3 {[%clk 0:02:52]}  h6 {[%clk 0:02:14]} 9. Bh4 {[%clk 0:02:51]}  Re8 {[%clk 0:02:05]} 10. O-O {[%clk 0:02:47]}  Qc7 {[%clk 0:01:42]} 11. Bg3 {[%clk 0:02:34]}  Bxg3 {[%clk 0:01:40]} 12. fxg3 {[%clk 0:02:33]}  dxc4 {[%clk 0:01:36]} 13. Bxc4 {[%clk 0:02:32]}  e5 {[%clk 0:01:37]} 14. d5 {[%clk 0:02:30]}  cxd5 {[%clk 0:01:23]} 15. Nxd5 {[%clk 0:02:27]}  Nxd5 {[%clk 0:01:24]} 16. Bxd5 {[%clk 0:02:26]}  Qb6 {[%clk 0:01:15]} 17. Rc3 {[%clk 0:01:59]}  Nf6 {[%clk 0:01:08]} 18. Bb3 {[%clk 0:01:52]}  Bg4 {[%clk 0:01:04]} 19. h3 {[%clk 0:01:51]}  Rad8 {[%clk 0:01:03]} 20. Qe2 {[%clk 0:01:50]}  Bd7 {[%clk 0:00:56]} 21. Rd1 {[%clk 0:01:40]}  Bb5 {[%clk 0:00:52]} 22. Qe1 {[%clk 0:01:39]}  Ne4 {[%clk 0:00:48]} 23. Rxd8 {[%clk 0:01:29]}  Rxd8 {[%clk 0:00:45]} 24. Nxe5 {[%clk 0:01:27]}  Nxc3 {[%clk 0:00:40]} 25. Nxf7 {[%clk 0:01:24]}  Rd5 {[%clk 0:00:38]} 26. Qxc3 {[%clk 0:01:17]}  Rd1+ {[%clk 0:00:11]} 27. Kh2 {[%clk 0:01:13]}  Kh7 {[%clk 0:00:11]} 28. Qc2+ {[%clk 0:01:10]}  Rd3 {[%clk 0:00:10]} 29. Ne5 {[%clk 0:01:09]}  Qxe3 {[%clk 0:00:08]} 30. Nxd3 {[%clk 0:01:08]}  Bxd3 {[%clk 0:00:08]} 31. Qc3 {[%clk 0:01:06]}  Qe4 {[%clk 0:00:04]} 32. Bd1 {[%clk 0:01:00]}  Bf1 {[%clk 0:00:04]} 33. Bf3 {[%clk 0:00:58]}  Qe7 {[%clk 0:00:04]} 34. Qc2+ {[%clk 0:00:56]}  Kh8 {[%clk 0:00:03]} 35. Qe4 {[%clk 0:00:54]}  Qxe4 {[%clk 0:00:03]} 36. Bxe4 {[%clk 0:00:54]}  b6 {[%clk 0:00:03]} 37. Kg1 {[%clk 0:00:54]}  Bc4 {[%clk 0:00:03]} 38. a3 {[%clk 0:00:54]}  Bf7 {[%clk 0:00:04]} 39. Kf2 {[%clk 0:00:54]}  Kg8 {[%clk 0:00:04]} 40. Ke3 {[%clk 0:00:55]}  Kf8 {[%clk 0:00:05]} 41. Kd4 {[%clk 0:00:55]}  Ke7 {[%clk 0:00:06]} 42. b4 {[%clk 0:00:56]}  Bb3 {[%clk 0:00:06]} 43. Bc6 {[%clk 0:00:55]}  Kd6 {[%clk 0:00:05]} 44. Be8 {[%clk 0:00:54]}  Bd5 {[%clk 0:00:05]} 45. h4 {[%clk 0:00:50]}  Bxg2 {[%clk 0:00:05]} 46. g4 {[%clk 0:00:50]}  g5 {[%clk 0:00:04]} 47. hxg5 {[%clk 0:00:50]}  hxg5 {[%clk 0:00:05]} 48. a4 {[%clk 0:00:50]}  Bf3 {[%clk 0:00:04]} 49. Bh5 {[%clk 0:00:49]}  a5 {[%clk 0:00:03]} 50. bxa5 {[%clk 0:00:49]}  bxa5 {[%clk 0:00:04]} 51. Kc4 {[%clk 0:00:49]}  Bc6 {[%clk 0:00:05]} 52. Kb3 {[%clk 0:00:46]}  Kc5 {[%clk 0:00:04]} 53. Ka3 {[%clk 0:00:44]}  Kc4 {[%clk 0:00:04]} 54. Bf7+ {[%clk 0:00:44]}  Kd4 {[%clk 0:00:04]} 55. Kb3 {[%clk 0:00:43]}  Bd5+ {[%clk 0:00:03]} 56. Bxd5 {[%clk 0:00:43]}  Kxd5 {[%clk 0:00:04]} 57. Kc3 {[%clk 0:00:44]}  Kc5 {[%clk 0:00:05]} 58. Kd3 {[%clk 0:00:44]}  Kb4 {[%clk 0:00:05]} 59. Ke4 {[%clk 0:00:43]}  Kxa4 {[%clk 0:00:06]} 60. Kf5 {[%clk 0:00:43]}  Kb5 {[%clk 0:00:06]} 61. Kxg5 {[%clk 0:00:44]}  a4 {[%clk 0:00:07]} 62. Kh6 {[%clk 0:00:44]}  a3 {[%clk 0:00:08]} 63. g5 {[%clk 0:00:44]}  a2 {[%clk 0:00:09]} 64. g6 {[%clk 0:00:45]}  a1=Q {[%clk 0:00:10]} 65. g7 {[%clk 0:00:45]}  Qh1+ {[%clk 0:00:10]} 66. Kg6 {[%clk 0:00:46]}  Qe4+ {[%clk 0:00:09]} 67. Kf7 {[%clk 0:00:45]}  Qd5+ {[%clk 0:00:09]} 68. Kf8 {[%clk 0:00:45]}  Qd6+ {[%clk 0:00:08]} 69. Kf7 {[%clk 0:00:45]}  Qd7+ {[%clk 0:00:09]} 70. Kf8 {[%clk 0:00:43]}  Qf5+ {[%clk 0:00:09]} 71. Ke7 {[%clk 0:00:43]}  Qg5+ {[%clk 0:00:09]} 72. Kf8 {[%clk 0:00:43]}  Qf6+ {[%clk 0:00:10]} 73. Kg8 {[%clk 0:00:43]}  Kc5 {[%clk 0:00:10]} 74. Kh7 {[%clk 0:00:44]}  Qf7 {[%clk 0:00:10]} 75. Kh8 {[%clk 0:00:44]}  Qh5+ {[%clk 0:00:11]} 76. Kg8 {[%clk 0:00:44]}  Kd6 {[%clk 0:00:11]} 77. Kf8 {[%clk 0:00:44]}  Qf5+ {[%clk 0:00:10]} 78. Kg8 {[%clk 0:00:44]}  Ke6 {[%clk 0:00:10]} 79. Kh8 {[%clk 0:00:43]}  Qh5+ {[%clk 0:00:10]} 80. Kg8 {[%clk 0:00:43]}  Kf6 {[%clk 0:00:10]} 0-1


[Site "https://www.chess.com"]

[Event "Titled Tuesday Blitz January 31 Early 2023"]
[White "Iskusnyh, Sergei"]
[Black "Gritsenko, Nikolai"]
[WhiteFideId "4120027"]
[BlackFideId "14112493"]
[WhiteElo "2440"]
[BlackElo "2309"]
[Result "1/2-1/2"]
[Round "09"]
[TimeControl "180+2"]
[Date "2023.01.31"]
[WhiteClock "0:00:31"]
[BlackClock "0:00:09"]

1. d4 {[%clk 0:02:53]}  d5 {[%clk 0:02:59]} 2. c4 {[%clk 0:02:52]}  e6 {[%clk 0:02:58]} 3. Nf3 {[%clk 0:02:48]}  Nf6 {[%clk 0:02:59]} 4. g3 {[%clk 0:02:47]}  Bb4+ {[%clk 0:02:57]} 5. Bd2 {[%clk 0:02:46]}  Be7 {[%clk 0:02:57]} 6. Bg2 {[%clk 0:02:46]}  O-O {[%clk 0:02:58]} 7. O-O {[%clk 0:02:47]}  c6 {[%clk 0:02:58]} 8. Qc2 {[%clk 0:02:46]}  b6 {[%clk 0:02:58]} 9. Rc1 {[%clk 0:02:41]}  Ba6 {[%clk 0:02:57]} 10. cxd5 {[%clk 0:02:33]}  cxd5 {[%clk 0:02:50]} 11. Qd1 {[%clk 0:02:28]}  Nbd7 {[%clk 0:02:28]} 12. a3 {[%clk 0:02:14]}  Rc8 {[%clk 0:02:19]} 13. Rxc8 {[%clk 0:02:13]}  Qxc8 {[%clk 0:02:18]} 14. Bb4 {[%clk 0:02:14]}  Re8 {[%clk 0:02:06]} 15. Nbd2 {[%clk 0:02:03]}  Qb7 {[%clk 0:01:57]} 16. Bxe7 {[%clk 0:02:00]}  Rxe7 {[%clk 0:01:57]} 17. Rc1 {[%clk 0:02:01]}  Re8 {[%clk 0:01:56]} 18. Ne5 {[%clk 0:01:59]}  Rc8 {[%clk 0:01:51]} 19. Nxd7 {[%clk 0:01:56]}  Qxd7 {[%clk 0:01:43]} 20. e3 {[%clk 0:01:53]}  Rxc1 {[%clk 0:01:40]} 21. Qxc1 {[%clk 0:01:52]}  Qc8 {[%clk 0:01:40]} 22. Qxc8+ {[%clk 0:01:51]}  Bxc8 {[%clk 0:01:39]} 23. Bf1 {[%clk 0:01:52]}  Kf8 {[%clk 0:01:38]} 24. Bb5 {[%clk 0:01:51]}  Ke7 {[%clk 0:01:34]} 25. f3 {[%clk 0:01:51]}  Ne8 {[%clk 0:01:24]} 26. Kf2 {[%clk 0:01:50]}  Nd6 {[%clk 0:01:23]} 27. Bd3 {[%clk 0:01:49]}  h6 {[%clk 0:01:19]} 28. Nb1 {[%clk 0:01:42]}  Bb7 {[%clk 0:01:10]} 29. Nc3 {[%clk 0:01:42]}  f6 {[%clk 0:01:08]} 30. f4 {[%clk 0:01:35]}  g5 {[%clk 0:01:06]} 31. fxg5 {[%clk 0:01:29]}  fxg5 {[%clk 0:01:04]} 32. Ne2 {[%clk 0:01:27]}  Bc6 {[%clk 0:00:59]} 33. Nc3 {[%clk 0:01:24]}  Be8 {[%clk 0:00:49]} 34. h4 {[%clk 0:01:18]}  Kf6 {[%clk 0:00:46]} 35. hxg5+ {[%clk 0:01:17]}  Kxg5 {[%clk 0:00:45]} 36. Ne2 {[%clk 0:01:14]}  Bg6 {[%clk 0:00:45]} 37. Ba6 {[%clk 0:01:13]}  Bf5 {[%clk 0:00:42]} 38. Nc3 {[%clk 0:01:12]}  Ne4+ {[%clk 0:00:41]} 39. Nxe4+ {[%clk 0:01:11]}  Bxe4 {[%clk 0:00:41]} 40. Bc8 {[%clk 0:01:11]}  Kf6 {[%clk 0:00:41]} 41. b4 {[%clk 0:01:08]}  h5 {[%clk 0:00:38]} 42. Bd7 {[%clk 0:01:07]}  Bf5 {[%clk 0:00:37]} 43. Kf3 {[%clk 0:01:07]}  Kg5 {[%clk 0:00:36]} 44. Bc8 {[%clk 0:01:04]}  Be4+ {[%clk 0:00:34]} 45. Kf2 {[%clk 0:01:03]}  Bf5 {[%clk 0:00:35]} 46. Ba6 {[%clk 0:01:02]}  Bg4 {[%clk 0:00:35]} 47. Bd3 {[%clk 0:01:02]}  Bf5 {[%clk 0:00:33]} 48. Bf1 {[%clk 0:01:00]}  Bg4 {[%clk 0:00:33]} 49. Ba6 {[%clk 0:01:00]}  Bf5 {[%clk 0:00:33]} 50. Kg2 {[%clk 0:00:59]}  Bg4 {[%clk 0:00:32]} 51. Kf2 {[%clk 0:00:57]}  Bf5 {[%clk 0:00:32]} 52. a4 {[%clk 0:00:57]}  Bg4 {[%clk 0:00:32]} 53. a5 {[%clk 0:00:57]}  bxa5 {[%clk 0:00:31]} 54. bxa5 {[%clk 0:00:57]}  Bf5 {[%clk 0:00:31]} 55. Bc8 {[%clk 0:00:53]}  Bg4 {[%clk 0:00:31]} 56. Bd7 {[%clk 0:00:53]}  Bf5 {[%clk 0:00:31]} 57. Bc8 {[%clk 0:00:53]}  Bg4 {[%clk 0:00:31]} 58. Ba6 {[%clk 0:00:49]}  Bf5 {[%clk 0:00:31]} 59. Bb7 {[%clk 0:00:49]}  Bg4 {[%clk 0:00:31]} 60. e4 {[%clk 0:00:49]}  dxe4 {[%clk 0:00:30]} 61. Bxe4 {[%clk 0:00:49]}  Bf5 {[%clk 0:00:29]} 62. Bb7 {[%clk 0:00:48]}  Kg4 {[%clk 0:00:27]} 63. Bf3+ {[%clk 0:00:46]}  Kg5 {[%clk 0:00:27]} 64. Ke3 {[%clk 0:00:46]}  Bg4 {[%clk 0:00:23]} 65. Bb7 {[%clk 0:00:46]}  Kf6 {[%clk 0:00:23]} 66. Kf4 {[%clk 0:00:45]}  Ke7 {[%clk 0:00:23]} 67. Be4 {[%clk 0:00:43]}  Kd6 {[%clk 0:00:22]} 68. Kg5 {[%clk 0:00:43]}  Bd1 {[%clk 0:00:18]} 69. Kf4 {[%clk 0:00:42]}  Bg4 {[%clk 0:00:17]} 70. Bb7 {[%clk 0:00:41]}  Bd1 {[%clk 0:00:17]} 71. Kg5 {[%clk 0:00:40]}  Be2 {[%clk 0:00:16]} 72. Kf6 {[%clk 0:00:40]}  Bd1 {[%clk 0:00:16]} 73. Bg2 {[%clk 0:00:39]}  Bg4 {[%clk 0:00:16]} 74. Kg5 {[%clk 0:00:38]}  Bd1 {[%clk 0:00:15]} 75. Be4 {[%clk 0:00:38]}  Be2 {[%clk 0:00:13]} 76. Bg6 {[%clk 0:00:33]}  Kd5 {[%clk 0:00:13]} 77. Bf7 {[%clk 0:00:32]}  Kxd4 {[%clk 0:00:11]} 78. Bxe6 {[%clk 0:00:32]}  Kc5 {[%clk 0:00:11]} 79. Bf7 {[%clk 0:00:32]}  Kb4 {[%clk 0:00:11]} 80. Bxh5 {[%clk 0:00:33]}  Bc4 {[%clk 0:00:10]} 81. Kf6 {[%clk 0:00:31]}  Kxa5 {[%clk 0:00:10]} 82. g4 {[%clk 0:00:30]}  Be2 {[%clk 0:00:09]} 83. Kg5 {[%clk 0:00:30]}  Bxg4 {[%clk 0:00:09]} 84. Bxg4 {[%clk 0:00:30]}  Kb4 {[%clk 0:00:09]} 85. Bd1 {[%clk 0:00:30]}  a5 {[%clk 0:00:09]} 86. Kf4 {[%clk 0:00:30]}  a4 {[%clk 0:00:09]} 87. Bxa4 {[%clk 0:00:31]} 1/2-1/2


[Site "https://www.chess.com"]

[Event "Titled Tuesday Blitz January 31 Early 2023"]
[White "Burdalev, Kirill"]
[Black "Fernandez Hernandez, Gerardo"]
[WhiteFideId "14121913"]
[BlackFideId "2207400"]
[WhiteElo "2368"]
[BlackElo "2181"]
[Result "0-1"]
[Round "09"]
[TimeControl "180+2"]
[Date "2023.01.31"]
[WhiteClock "0:00:54"]
[BlackClock "0:00:53"]

1. e4 {[%clk 0:03:00]}  e6 {[%clk 0:02:59]} 2. d4 {[%clk 0:02:59]}  d5 {[%clk 0:02:59]} 3. e5 {[%clk 0:02:58]}  c5 {[%clk 0:02:59]} 4. c3 {[%clk 0:02:57]}  Nc6 {[%clk 0:03:00]} 5. Nf3 {[%clk 0:02:56]}  Qb6 {[%clk 0:03:00]} 6. a3 {[%clk 0:02:55]}  f6 {[%clk 0:02:59]} 7. Bd3 {[%clk 0:02:49]}  fxe5 {[%clk 0:02:58]} 8. Nxe5 {[%clk 0:02:48]}  Nf6 {[%clk 0:02:57]} 9. O-O {[%clk 0:02:46]}  cxd4 {[%clk 0:02:55]} 10. Nxc6 {[%clk 0:02:36]}  bxc6 {[%clk 0:02:50]} 11. cxd4 {[%clk 0:02:36]}  Bd6 {[%clk 0:02:50]} 12. Nc3 {[%clk 0:02:33]}  Qxd4 {[%clk 0:02:48]} 13. Bg6+ {[%clk 0:02:32]}  hxg6 {[%clk 0:02:48]} 14. Qxd4 {[%clk 0:02:16]}  Bxh2+ {[%clk 0:02:47]} 15. Kh1 {[%clk 0:02:13]}  Be5+ {[%clk 0:02:48]} 16. Kg1 {[%clk 0:02:12]}  Bxd4 {[%clk 0:02:48]} 17. Be3 {[%clk 0:02:08]}  Bxe3 {[%clk 0:02:45]} 18. fxe3 {[%clk 0:02:09]}  Ba6 {[%clk 0:02:38]} 19. Rfc1 {[%clk 0:02:04]}  O-O-O {[%clk 0:02:16]} 20. Na4 {[%clk 0:02:02]}  Bc4 {[%clk 0:02:12]} 21. Nc5 {[%clk 0:02:00]}  e5 {[%clk 0:02:04]} 22. b3 {[%clk 0:01:57]}  Be2 {[%clk 0:02:02]} 23. Ra2 {[%clk 0:01:43]}  Bg4 {[%clk 0:01:56]} 24. Nd3 {[%clk 0:01:41]}  Kb7 {[%clk 0:01:36]} 25. Nxe5 {[%clk 0:01:39]}  Rc8 {[%clk 0:01:35]} 26. Nxg6 {[%clk 0:01:37]}  Rh6 {[%clk 0:01:30]} 27. Ne5 {[%clk 0:01:32]}  Be6 {[%clk 0:01:23]} 28. Rac2 {[%clk 0:01:26]}  Ng4 {[%clk 0:01:20]} 29. Nxc6 {[%clk 0:01:23]}  Rch8 {[%clk 0:00:58]} 30. Na5+ {[%clk 0:01:17]}  Kb8 {[%clk 0:00:55]} 31. Nc6+ {[%clk 0:01:14]}  Ka8 {[%clk 0:00:56]} 32. g3 {[%clk 0:01:02]}  Rh1+ {[%clk 0:00:53]} 33. Kg2 {[%clk 0:01:00]}  Nxe3+ {[%clk 0:00:54]} 34. Kf2 {[%clk 0:00:55]}  Nxc2 {[%clk 0:00:53]} 35. Rxc2 {[%clk 0:00:54]}  R1h2+ {[%clk 0:00:53]} 0-1


[Site "https://www.chess.com"]

[Event "Titled Tuesday Blitz January 31 Early 2023"]
[White "Hakobyan, Aram"]
[Black "Nakamura, Hikaru"]
[WhiteFideId "13306677"]
[BlackFideId "2016192"]
[WhiteElo "2608"]
[BlackElo "2775"]
[Result "0-1"]
[Round "10"]
[TimeControl "180+2"]
[Date "2023.01.31"]
[WhiteClock "0:00:03"]
[BlackClock "0:00:15"]

1. e4 {[%clk 0:03:00]}  e5 {[%clk 0:02:57]} 2. Nf3 {[%clk 0:03:01]}  Nc6 {[%clk 0:02:57]} 3. Bb5 {[%clk 0:03:01]}  a6 {[%clk 0:02:48]} 4. Ba4 {[%clk 0:03:01]}  d6 {[%clk 0:02:49]} 5. c3 {[%clk 0:02:58]}  Bd7 {[%clk 0:02:48]} 6. O-O {[%clk 0:02:57]}  g6 {[%clk 0:02:48]} 7. d4 {[%clk 0:02:57]}  Bg7 {[%clk 0:02:49]} 8. d5 {[%clk 0:02:55]}  Nce7 {[%clk 0:02:47]} 9. Bxd7+ {[%clk 0:02:56]}  Qxd7 {[%clk 0:02:47]} 10. c4 {[%clk 0:02:56]}  h6 {[%clk 0:02:42]} 11. Nc3 {[%clk 0:02:54]}  f5 {[%clk 0:02:42]} 12. Ne1 {[%clk 0:02:40]}  Nf6 {[%clk 0:02:40]} 13. f3 {[%clk 0:02:40]}  c6 {[%clk 0:02:39]} 14. Nd3 {[%clk 0:02:38]}  cxd5 {[%clk 0:02:39]} 15. cxd5 {[%clk 0:02:38]}  Rc8 {[%clk 0:02:34]} 16. a4 {[%clk 0:02:37]}  O-O {[%clk 0:02:29]} 17. Qb3 {[%clk 0:02:32]}  Kh8 {[%clk 0:02:16]} 18. Be3 {[%clk 0:02:28]}  f4 {[%clk 0:02:05]} 19. Bf2 {[%clk 0:02:24]}  g5 {[%clk 0:02:06]} 20. a5 {[%clk 0:01:54]}  g4 {[%clk 0:02:04]} 21. Qa4 {[%clk 0:01:55]}  Qc7 {[%clk 0:02:04]} 22. Bb6 {[%clk 0:01:51]}  Qb8 {[%clk 0:02:04]} 23. Rac1 {[%clk 0:01:44]}  Ng6 {[%clk 0:01:59]} 24. Ne2 {[%clk 0:01:41]}  Nh4 {[%clk 0:01:47]} 25. Kh1 {[%clk 0:01:34]}  Rxc1 {[%clk 0:01:43]} 26. Nexc1 {[%clk 0:01:11]}  Qc8 {[%clk 0:01:33]} 27. Qd1 {[%clk 0:00:49]}  Rg8 {[%clk 0:00:52]} 28. Bf2 {[%clk 0:00:39]}  Ng6 {[%clk 0:00:47]} 29. Ne2 {[%clk 0:00:35]}  Bf8 {[%clk 0:00:42]} 30. Ng1 {[%clk 0:00:32]}  g3 {[%clk 0:00:42]} 31. hxg3 {[%clk 0:00:27]}  fxg3 {[%clk 0:00:43]} 32. Bxg3 {[%clk 0:00:28]}  Nh5 {[%clk 0:00:43]} 33. Bh2 {[%clk 0:00:27]}  Qd8 {[%clk 0:00:43]} 34. g4 {[%clk 0:00:23]}  Nhf4 {[%clk 0:00:44]} 35. Nxf4 {[%clk 0:00:23]}  exf4 {[%clk 0:00:44]} 36. Ne2 {[%clk 0:00:23]}  Qh4 {[%clk 0:00:43]} 37. Qe1 {[%clk 0:00:21]}  Qg5 {[%clk 0:00:41]} 38. Nd4 {[%clk 0:00:20]}  Bg7 {[%clk 0:00:40]} 39. Ne6 {[%clk 0:00:21]}  Qf6 {[%clk 0:00:40]} 40. Nxg7 {[%clk 0:00:21]}  Rxg7 {[%clk 0:00:39]} 41. Qd2 {[%clk 0:00:21]}  Kh7 {[%clk 0:00:36]} 42. Rc1 {[%clk 0:00:22]}  Qh4 {[%clk 0:00:34]} 43. Rf1 {[%clk 0:00:14]}  Rf7 {[%clk 0:00:28]} 44. b4 {[%clk 0:00:13]}  Ne5 {[%clk 0:00:26]} 45. Kg1 {[%clk 0:00:10]}  h5 {[%clk 0:00:27]} 46. gxh5 {[%clk 0:00:06]}  Qh3 {[%clk 0:00:25]} 47. Qe2 {[%clk 0:00:03]}  Qxh5 {[%clk 0:00:22]} 48. Kh1 {[%clk 0:00:03]}  Rg7 {[%clk 0:00:23]} 49. Qf2 {[%clk 0:00:03]}  Qh3 {[%clk 0:00:22]} 50. Qe2 {[%clk 0:00:01]}  Rg3 {[%clk 0:00:22]} 51. b5 {[%clk 0:00:02]}  Nxf3 {[%clk 0:00:20]} 52. bxa6 {[%clk 0:00:03]}  bxa6 {[%clk 0:00:21]} 53. Rc1 {[%clk 0:00:01]}  Rg6 {[%clk 0:00:15]} 54. e5 {[%clk 0:00:01]}  dxe5 {[%clk 0:00:15]} 55. d6 {[%clk 0:00:02]}  Nxh2 {[%clk 0:00:14]} 56. Qxh2 {[%clk 0:00:02]}  Qxh2+ {[%clk 0:00:15]} 57. Kxh2 {[%clk 0:00:03]}  Rxd6 {[%clk 0:00:15]} 58. Rc5 {[%clk 0:00:03]}  Re6 {[%clk 0:00:13]} 59. Kg2 {[%clk 0:00:03]}  Kg6 {[%clk 0:00:14]} 60. Kf3 {[%clk 0:00:03]}  Kf5 {[%clk 0:00:14]} 61. Rd5 {[%clk 0:00:03]}  Rc6 {[%clk 0:00:14]} 62. Rd8 {[%clk 0:00:04]}  e4+ {[%clk 0:00:14]} 63. Ke2 {[%clk 0:00:05]}  Ke5 {[%clk 0:00:15]} 64. Ra8 {[%clk 0:00:05]}  Rf6 {[%clk 0:00:14]} 65. Re8+ {[%clk 0:00:05]}  Kd4 {[%clk 0:00:15]} 66. Rd8+ {[%clk 0:00:06]}  Kc3 {[%clk 0:00:15]} 67. Rc8+ {[%clk 0:00:06]}  Kb4 {[%clk 0:00:15]} 68. Re8 {[%clk 0:00:05]}  e3 {[%clk 0:00:14]} 69. Kf3 {[%clk 0:00:02]}  Kxa5 {[%clk 0:00:14]} 70. Re4 {[%clk 0:00:03]}  Kb5 {[%clk 0:00:15]} 71. Re6 {[%clk 0:00:03]}  Rxe6 {[%clk 0:00:15]} 0-1


[Site "https://www.chess.com"]

[Event "Titled Tuesday Blitz January 31 Early 2023"]
[White "So, Wesley"]
[Black "Shimanov, Aleksandr"]
[WhiteFideId "5202213"]
[BlackFideId "4198603"]
[WhiteElo "2760"]
[BlackElo "2581"]
[Result "1-0"]
[Round "10"]
[TimeControl "180+2"]
[Date "2023.01.31"]
[WhiteClock "0:00:59"]
[BlackClock "0:00:42"]

1. e4 {[%clk 0:03:00]}  d5 {[%clk 0:03:00]} 2. exd5 {[%clk 0:02:57]}  Qxd5 {[%clk 0:03:01]} 3. Nc3 {[%clk 0:02:56]}  Qe5+ {[%clk 0:03:01]} 4. Be2 {[%clk 0:02:55]}  Bg4 {[%clk 0:03:01]} 5. d4 {[%clk 0:02:52]}  Bxe2 {[%clk 0:03:02]} 6. Ngxe2 {[%clk 0:02:53]}  Qa5 {[%clk 0:03:02]} 7. O-O {[%clk 0:02:50]}  Nf6 {[%clk 0:03:02]} 8. b4 {[%clk 0:02:29]}  Qh5 {[%clk 0:03:01]} 9. Qd3 {[%clk 0:02:28]}  e6 {[%clk 0:03:00]} 10. Ng3 {[%clk 0:02:21]}  Qg6 {[%clk 0:03:00]} 11. Qb5+ {[%clk 0:02:18]}  Nbd7 {[%clk 0:03:01]} 12. Qxb7 {[%clk 0:02:18]}  Rb8 {[%clk 0:03:00]} 13. Qxc7 {[%clk 0:02:17]}  Bxb4 {[%clk 0:03:01]} 14. Nce2 {[%clk 0:02:08]}  O-O {[%clk 0:02:48]} 15. Nf4 {[%clk 0:01:59]}  Qg4 {[%clk 0:02:41]} 16. h3 {[%clk 0:01:57]}  Qh4 {[%clk 0:02:39]} 17. Nge2 {[%clk 0:01:54]}  Rbc8 {[%clk 0:01:42]} 18. Qxa7 {[%clk 0:01:47]}  Rxc2 {[%clk 0:01:42]} 19. Qa4 {[%clk 0:01:44]}  Rxe2 {[%clk 0:01:04]} 20. g3 {[%clk 0:01:38]}  Qh6 {[%clk 0:01:02]} 21. Nxe2 {[%clk 0:01:33]}  Qxh3 {[%clk 0:01:02]} 22. Nf4 {[%clk 0:01:34]}  Qg4 {[%clk 0:00:53]} 23. Qxb4 {[%clk 0:01:32]}  e5 {[%clk 0:00:53]} 24. Ng2 {[%clk 0:01:20]}  Qh3 {[%clk 0:00:52]} 25. f3 {[%clk 0:01:16]}  Qxg3 {[%clk 0:00:50]} 26. dxe5 {[%clk 0:01:14]}  Nd5 {[%clk 0:00:42]} 27. Qd4 {[%clk 0:00:59]} 1-0


[Site "https://www.chess.com"]